lending/lending_fUSD_20250121
["ID","MTS","AMOUNT","RATE_DAILY","PERIOD"]
[349781509,1737424243857,-500.0,0.00021366,2]
[349781511,1737424243866,-709.93,0.00021366,2]
[349781513,1737424243875,-500.0,0.00021366,2]
[349781515,1737424243884,-803.81,0.00021366,2]
[349781517,1737424243893,-500.0,0.00021366,2]
[349781519,1737424243903,-768.94,0.00021366,2]
[349781520,1737424243912,-500.0,0.00021366,2]
[349781523,1737424243921,-500.0,0.00021366,2]
[349781525,1737424243930,-500.0,0.00021366,2]
[349781527,1737424243940,-860.94,0.00021366,2]
[349781529,1737424243949,-500.0,0.00021367,2]
[349781531,1737424243959,-500.0,0.00021367,2]
[349781533,1737424243967,-172.60203797,0.00021375,2]
[349781535,1737424243976,-151.97,0.00021389,2]
[349781537,1737424243985,-150.6,0.00021389,2]
[349781539,1737424243994,-1002.94,0.00021389,2]
[349781541,1737424244003,-521.87268237,0.00021433,2]
[349781543,1737424244015,-151.09,0.00021452,2]
[349781545,1737424244023,-150.0,0.00021452,2]
[349781547,1737424244033,-150.0,0.00021452,2]
[349781549,1737424244042,-150.0,0.00021452,2]
[349781551,1737424244051,-211.0,0.000215,2]
[349781553,1737424244061,-172.60203797,0.00021506,2]
[349781555,1737424244070,-500.0,0.00021538,2]
[349781557,1737424244079,-500.0,0.00021538,2]
[349781559,1737424244092,-715.37,0.00021559,2]
[349781561,1737424244101,-844.6298188,0.0002156,2]
[349781563,1737424244110,-12994.4873,0.00021585,2]
[349781565,1737424244120,-500.0,0.00021589,2]
[349781567,1737424244129,-323.40719674,0.00021603,2]
[349781569,1737424244138,-1983.5269502,0.00021618,2]
[349781571,1737424244147,-172.60203797,0.00021637,2]
[349781573,1737424244157,-500.0,0.00021639,2]
[349781575,1737424244166,-500.0,0.00021639,2]
[349781577,1737424244175,-336.80958936,0.00021639,2]
[349781579,1737424244185,-500.0,0.00021639,2]
[349781581,1737424244194,-500.0,0.00021639,2]
[349781583,1737424244203,-500.0,0.00021639,2]
[349781585,1737424244212,-564.64735512,0.00021639,2]
[349781587,1737424244221,-500.0,0.00021639,2]
[349781589,1737424244229,-500.0,0.00021639,2]
[349781591,1737424244238,-500.0,0.00021639,2]
[349781593,1737424244247,-824.26,0.00021639,2]
[349781595,1737424244258,-521.38,0.00021639,2]
[349781597,1737424244267,-1102.09,0.00021639,2]
[349781599,1737424244280,-500.0,0.00021639,2]
[349781601,1737424244289,-1028.11,0.00021639,2]
[349781602,1737424244298,-500.0,0.00021639,2]
[349781604,1737424244308,-500.0,0.00021639,2]
[349781606,1737424244318,-624.84,0.00021639,2]
[349781608,1737424244328,-500.0,0.00021639,2]
[349781610,1737424244337,-500.0,0.00021639,2]
[349781612,1737424244347,-1274.15,0.00021639,2]
[349781614,1737424244356,-500.0,0.00021639,2]
[349781616,1737424244365,-500.0,0.00021639,2]
[349781618,1737424244374,-627.8,0.00021639,2]
[349781620,1737424244384,-500.0,0.00021639,2]
[349781622,1737424244393,-500.0,0.00021639,2]
[349781624,1737424244402,-534.9,0.00021639,2]
[349781626,1737424244411,-500.0,0.00021639,2]
[349781628,1737424244420,-895.52,0.00021639,2]
[349781630,1737424244429,-942.07,0.00021639,2]
[349781632,1737424244437,-1683.33,0.00021639,2]
[349781634,1737424244446,-500.0,0.00021639,2]
[349781636,1737424244455,-500.0,0.0002164,2]
[349781638,1737424244464,-500.0,0.0002164,2]
[349781639,1737424244474,-785.53,0.0002164,2]
[349781641,1737424244483,-500.0,0.0002164,2]
[349781643,1737424244493,-500.0,0.0002164,2]
[349781645,1737424244502,-429.386752,0.0002164,2]
[349781647,1737424244514,-500.0,0.0002164,2]
[349781649,1737424244524,-606.77,0.0002164,2]
[349781651,1737424244533,-500.0,0.0002164,2]
[349781653,1737424244541,-500.0,0.0002164,2]
[349781655,1737424244551,-500.0,0.0002164,2]
[349781657,1737424244561,-500.0,0.0002164,2]
[349781659,1737424244570,-500.0,0.0002164,2]
[349781661,1737424244579,-500.0,0.0002164,2]
[349781663,1737424244589,-231.810786,0.0002164,2]
[349781665,1737424244598,-906.4,0.0002164,2]
[349781667,1737424244608,-649.8,0.0002164,2]
[349781669,1737424244617,-718.48,0.0002164,2]
[349781671,1737424244627,-500.0,0.0002164,2]
[349781673,1737424244636,-500.0,0.0002164,2]
[349781675,1737424244646,-636.12,0.0002164,2]
[349781677,1737424244655,-643.95,0.0002164,2]
[349781679,1737424244665,-500.0,0.0002164,2]
[349781681,1737424244675,-877.29,0.0002164,2]
[349781683,1737424244684,-500.0,0.0002164,2]
[349781685,1737424244693,-678.62,0.0002164,2]
[349781687,1737424244702,-500.0,0.0002164,2]
[349781689,1737424244712,-500.0,0.0002164,2]
[349781691,1737424244721,-515.96,0.0002164,2]
[349781693,1737424244730,-500.0,0.0002164,2]
[349781695,1737424244739,-500.0,0.0002164,2]
[349781697,1737424244748,-803.67,0.0002164,2]
[349781699,1737424244758,-500.0,0.0002164,2]
[349781701,1737424244767,-715.23,0.0002164,2]
[349781703,1737424244776,-500.0,0.0002164,2]
[349781705,1737424244785,-500.0,0.0002164,2]
[349781707,1737424244795,-500.0,0.0002164,2]
[349781709,1737424244804,-500.0,0.0002164,2]
[349781711,1737424244813,-709.93,0.0002164,2]
[349781713,1737424244822,-500.0,0.0002164,2]
[349781714,1737424244831,-803.81,0.0002164,2]
[349781715,1737424244840,-500.0,0.0002164,2]
[349781716,1737424244850,-768.94,0.0002164,2]
[349781717,1737424244859,-500.0,0.0002164,2]
[349781718,1737424244868,-500.0,0.0002164,2]
[349781719,1737424244877,-500.0,0.0002164,2]
[349781720,1737424244886,-860.94,0.0002164,2]
[349781721,1737424244894,-500.0,0.00021641,2]
[349781722,1737424244903,-500.0,0.00021641,2]
[349781723,1737424244912,-521.87268237,0.00021666,2]
[349781724,1737424244921,-1606.25753536,0.0002167,2]
[349781725,1737424244975,-1803.9,0.00021685,7]
[349781726,1737424244984,-1803.9,0.00021685,7]
[349781727,1737424244993,-1803.9,0.00021685,7]
[349781729,1737424245001,-1803.9,0.00021685,7]
[349781731,1737424245013,-1000.0,0.000217,2]
[349781733,1737424245021,-161.0,0.000217,2]
[349781735,1737424245030,-152.0,0.00021717,3]
[349781736,1737424245038,-323.40719676,0.00021725,2]
[349781738,1737424245048,-3056.5106365,0.00021732,2]
[349781740,1737424245056,-15282.553183,0.00021753,2]
[349781742,1737424245066,-3964.63783411,0.00021762,2]
[349781744,1737424245075,-172.60203797,0.00021769,2]
[349781746,1737424245083,-472.83210718,0.00021775,2]
[349781748,1737424245092,-15282.553183,0.00021777,2]
[349781750,1737424245101,-1000.0,0.00021778,2]
[349781752,1737424245110,-3000.0,0.0002178,2]
[349781754,1737424245119,-472.83210718,0.00021785,2]
[349781756,1737424245128,-3964.63783411,0.00021791,2]
[349781758,1737424245137,-1009.0,0.000218,2]
[349781760,1737424245146,-500.0,0.00021812,2]
[349781762,1737424245155,-500.0,0.00021812,2]
[349781764,1737424245164,-211.0,0.0002182,2]
[349781766,1737424245172,-3056.5106365,0.0002182,2]
[349781768,1737424245181,-500.0,0.00021823,2]
[349781770,1737424245190,-500.0,0.00021824,2]
[349781771,1737424245199,-172.0,0.00021825,2]
[349781773,1737424245207,-15282.553183,0.00021825,2]
[349781775,1737424245217,-472.83210718,0.00021827,2]
[349781777,1737424245226,-472.83210718,0.0002183,2]
[349781779,1737424245234,-3964.63783411,0.00021833,2]
[349781781,1737424245243,-3056.5106365,0.00021856,2]
[349781783,1737424245252,-3056.5106365,0.00021858,2]
[349781785,1737424245264,-3964.63783411,0.00021862,2]
[349781787,1737424245276,-15282.553183,0.00021865,2]
[349781789,1737424245285,-472.83210718,0.0002187,2]
[349781791,1737424245294,-3056.5106365,0.00021872,2]
[349781793,1737424245302,-3964.63783411,0.00021877,2]
[349781795,1737424245310,-500.0,0.0002189,2]
[349781797,1737424245320,-853.8522,0.000219,2]
[349781799,1737424245328,-5026.91649023,0.000219,2]
[349781801,1737424245338,-2063.7,0.000219,31]
[349781803,1737424245347,-2063.7,0.000219,31]
[349781805,1737424245357,-2063.7,0.000219,31]
[349781807,1737424245366,-2063.7,0.000219,31]
[349781809,1737424245375,-2063.7,0.000219,31]
[349781811,1737424245384,-2063.7,0.000219,31]
[349781813,1737424245393,-2063.7,0.000219,31]
[349781815,1737424245402,-2063.7,0.000219,31]
[349781817,1737424245411,-2063.7,0.000219,31]
[349781819,1737424245420,-2063.7,0.000219,31]
[349781821,1737424245428,-2063.7,0.000219,31]
[349781823,1737424245438,-2063.7,0.000219,31]
[349781825,1737424245447,-2063.7,0.000219,31]
[349781827,1737424245456,-2063.7,0.000219,31]
[349781829,1737424245465,-2063.7,0.000219,31]
[349781830,1737424245474,-2063.7,0.000219,31]
[349781832,1737424245484,-521.87268237,0.000219,2]
[349781835,1737424245494,-460.62024137,0.000219,2]
[349781837,1737424245503,-460.62024137,0.000219,2]
[349781838,1737424245514,-460.62024137,0.000219,2]
[349781840,1737424245524,-460.62024137,0.000219,2]
[349781842,1737424245533,-460.62024137,0.000219,2]
[349781844,1737424245543,-460.62024137,0.000219,2]
[349781846,1737424245552,-460.62024137,0.000219,2]
[349781848,1737424245561,-460.62024137,0.000219,2]
[349781850,1737424245571,-460.62024137,0.000219,2]
[349781852,1737424245580,-460.62024137,0.000219,2]
[349781854,1737424245590,-460.62024137,0.000219,2]
[349781856,1737424245599,-460.62024137,0.000219,2]
[349781858,1737424245609,-460.62024137,0.000219,2]
[349781860,1737424245618,-172.60203797,0.000219,2]
[349781862,1737424245627,-1598.89073774,0.000219,2]
[349781864,1737424245636,-259.47905253,0.000219,2]
[349781866,1737424245645,-20226.28218976,0.000219,2]
[349781868,1737424245655,-569.267,0.00021908,2]
[349781870,1737424245664,-1582.426,0.00021908,2]
[349781872,1737424245673,-255.147,0.00021908,2]
[349781874,1737424245683,-538.882,0.00021908,2]
[349781876,1737424245692,-3984.0,0.00021908,2]
[349781878,1737424245701,-3902.0,0.00021908,2]
[349781880,1737424245711,-150.0,0.00021908,2]
[349781881,1737424245720,-150.0,0.00021908,2]
[349781883,1737424245729,-500.0,0.00021913,2]
[349781886,1737424245739,-562.91490949,0.00021913,2]
[349781887,1737424245748,-447.6040033,0.00021913,2]
[349781889,1737424245758,-500.0,0.00021913,2]
[349781891,1737424245767,-500.0,0.00021913,2]
[349781893,1737424245776,-360.80877021,0.00021913,2]
[349781895,1737424245786,-500.0,0.00021913,2]
[349781897,1737424245795,-500.0,0.00021913,2]
[349781900,1737424245804,-824.26,0.00021913,2]
[349781901,1737424245813,-521.38,0.00021913,2]
[349781902,1737424245822,-1102.09,0.00021913,2]
[349781903,1737424245832,-500.0,0.00021913,2]
[349781905,1737424245841,-1028.11,0.00021913,2]
[349781906,1737424245850,-500.0,0.00021913,2]
[349781907,1737424245859,-500.0,0.00021913,2]
[349781908,1737424245869,-624.84,0.00021913,2]
[349781909,1737424245878,-500.0,0.00021913,2]
[349781910,1737424245887,-500.0,0.00021913,2]
[349781911,1737424245896,-1274.15,0.00021913,2]
[349781912,1737424245905,-500.0,0.00021913,2]
[349781913,1737424245914,-190.95760746,0.00021913,2]
[349781914,1737424245924,-627.8,0.00021913,2]
[349781915,1737424245933,-500.0,0.00021913,2]
[349781916,1737424245942,-500.0,0.00021913,2]
[349781917,1737424245952,-534.9,0.00021913,2]
[349781918,1737424245961,-500.0,0.00021913,2]
[349781919,1737424245970,-942.07,0.00021913,2]
[349781920,1737424245979,-895.52,0.00021913,2]
[349781921,1737424245989,-1683.33,0.00021913,2]
[349781922,1737424245998,-500.0,0.00021913,2]
[349781923,1737424246008,-500.0,0.00021914,2]
[349781924,1737424246018,-500.0,0.00021914,2]
[349781925,1737424246028,-785.53,0.00021914,2]
[349781926,1737424246037,-500.0,0.00021914,2]
[349781927,1737424246047,-500.0,0.00021914,2]
[349781928,1737424246056,-429.386752,0.00021914,2]
[349781929,1737424246067,-304.87154407,0.00021914,2]
[349781930,1737424246076,-606.77,0.00021914,2]
[349781931,1737424246085,-500.0,0.00021914,2]
[349781932,1737424246094,-500.0,0.00021914,2]
[349781933,1737424246103,-500.0,0.00021914,2]
[349781934,1737424246112,-500.0,0.00021914,2]
[349781935,1737424246122,-407.95224893,0.00021914,2]
[349781936,1737424246131,-500.0,0.00021914,2]
[349781937,1737424246140,-231.810786,0.00021914,2]
[349781938,1737424246149,-906.4,0.00021914,2]
[349781939,1737424246159,-649.8,0.00021914,2]
[349781940,1737424246168,-718.48,0.00021914,2]
[349781941,1737424246178,-500.0,0.00021914,2]
[349781942,1737424246187,-500.0,0.00021914,2]
[349781943,1737424246196,-636.12,0.00021914,2]
[349781944,1737424246206,-643.95,0.00021914,2]
[349781945,1737424246215,-500.0,0.00021914,2]
[349781946,1737424246224,-877.29,0.00021914,2]
[349781947,1737424246233,-500.0,0.00021914,2]
[349781948,1737424246243,-678.62,0.00021914,2]
[349781949,1737424246252,-500.0,0.00021914,2]
[349781950,1737424246264,-500.0,0.00021914,2]
[349781951,1737424246275,-515.96,0.00021914,2]
[349781952,1737424246284,-500.0,0.00021914,2]
[349781954,1737424246293,-500.0,0.00021914,2]
[349781956,1737424246302,-803.67,0.00021914,2]
[349781958,1737424246314,-500.0,0.00021914,2]
[349781960,1737424246324,-715.23,0.00021914,2]
[349781962,1737424246333,-500.0,0.00021914,2]
[349781964,1737424246343,-500.0,0.00021914,2]
[349781966,1737424246352,-500.0,0.00021914,2]
[349781968,1737424246362,-500.0,0.00021914,2]
[349781970,1737424246371,-709.93,0.00021914,2]
[349781972,1737424246381,-500.0,0.00021914,2]
[349781974,1737424246391,-803.81,0.00021914,2]
[349781976,1737424246401,-500.0,0.00021914,2]
[349781978,1737424246410,-768.94,0.00021914,2]
[349781980,1737424246420,-500.0,0.00021914,2]
[349781982,1737424246429,-500.0,0.00021914,2]
[349781984,1737424246438,-500.0,0.00021914,2]
[349781986,1737424246448,-500.0,0.00021915,2]
[349781988,1737424246457,-500.0,0.00021915,2]
[349781990,1737424246465,-500.0,0.00021917,3]
[349781992,1737424246475,-500.0,0.00021917,3]
[349781994,1737424246483,-500.0,0.00021917,3]
[349781996,1737424246493,-500.0,0.00021917,3]
[349781998,1737424246502,-500.0,0.00021917,3]
[349782000,1737424246514,-500.0,0.00021917,3]
[349782002,1737424246526,-500.0,0.00021917,3]
[349782004,1737424246535,-150.0,0.00021918,2]
[349782006,1737424246546,-4000.0,0.00021918,2]
[349782008,1737424246556,-1803.9,0.00021959,7]
[349782010,1737424246566,-1803.9,0.00021959,7]
[349782012,1737424246575,-150.0,0.00021973,4]
[349782014,1737424246584,-289.83303966,0.00021973,4]
[349782016,1737424246594,-150.0,0.00021973,4]
[349782018,1737424246604,-500.55376284,0.00021973,2]
[349782019,1737424246613,-159.95486234,0.00021973,2]
[349782021,1737424246623,-303.28641016,0.00021973,2]
[349782024,1737424246633,-306.42217223,0.00021973,2]
[349782025,1737424246642,-161.95993451,0.00021973,2]
[349782028,1737424246652,-303.32828405,0.00021973,2]
[349782030,1737424246662,-500.0,0.00021973,2]
[349782032,1737424246671,-150.0,0.00021984,2]
[349782034,1737424246681,-465.84456322,0.00021985,4]
[349782036,1737424246690,-3676.376853,0.00021992,2]
[349782038,1737424246701,-2272.9748496,0.00021992,2]
[349782039,1737424246710,-250.947854,0.00021992,2]
[349782041,1737424246722,-324.48095958,0.00021992,2]
[349782043,1737424246732,-896.55522008,0.00021997,2]
[349782045,1737424246742,-2000.0,0.00021999,2]
[349782047,1737424246752,-2000.0,0.00021999,2]
[349782049,1737424246766,-2000.0,0.00021999,2]
[349782051,1737424246776,-2000.0,0.00021999,2]
[349782053,1737424246785,-2000.0,0.00021999,2]
[349782055,1737424246795,-150.0,0.00021999,2]
[349782057,1737424246804,-2000.0,0.00021999,2]
[349782059,1737424246814,-20000.0,0.00021999,2]
[349782061,1737424246823,-500.0,0.00021999,2]
[349782063,1737424246832,-332.5799057,0.00021999,2]
[349782065,1737424246842,-1031.44,0.00021999,2]
[349782067,1737424246851,-2208.0,0.00021999,2]
[349782069,1737424246860,-220.09225564,0.00022,2]
[349782071,1737424246869,-9372121.17779854,0.00022,2]
[349782073,1737424246878,-1693.51306782,0.00022,2]
[349782075,1737424246888,-3359123.81023533,0.00022,2]
[349782093,1737424247050,-3033.3,0.00022,2]
[349782095,1737424247063,-461.92824619,0.00022,2]
[349782097,1737424247074,-1305.74566923,0.00022,2]
[349782100,1737424247090,-603.81,0.00021092,2]
[349782102,1737424247099,-37.36075531,0.00022,2]
[349782104,1737424247111,-255809.58442521,0.00022,2]
[349782135,1737424247397,-277.45127565,0.00021366,2]
[349782137,1737424247409,-306.94443232,0.00021366,2]
[349782139,1737424247420,-19.41429203,0.00021366,2]
[349782141,1737424247430,-603.81,0.0002164,2]
[349782143,1737424247440,-860.94,0.00021914,2]
[349782145,1737424247450,-603.81,0.00021914,2]
[349782147,1737424247459,-8448.85016319,0.00022,2]
[349782151,1737424247483,-693.7626308,0.00022,2]
[349782153,1737424247495,-7827.73035,0.00022,2]
[349782155,1737424247507,-4536.2,0.00022,2]
[349782178,1737424247808,-250.0,0.00020344,2]
[349782179,1737424247818,-4879.5029632,0.00022,2]
[349782180,1737424247841,-3399.9997,0.00022,2]
[349782181,1737424247852,-340.000004,0.00022,2]
[349782182,1737424247863,-1001.8,0.00022,2]
[349782217,1737424248200,-507.55037855,0.0002027,2]
[349782219,1737424248211,-26659.64962145,0.00022,2]
[349782226,1737424248282,-1735.43624643,0.00022,2]
[349782229,1737424248303,-3061.1710807,0.00022,2]
[349782288,1737424440533,2074.42981697,0.00024,90]
[349782297,1737424789739,3000.0,0.00024,120]
[349782305,1737425109978,157.53,0.00010137,2]
[349782308,1737425285691,632.0422018,0.00024,90]
[349782313,1737425367103,-550.0,0.00015,2]
[349782314,1737425367124,-176.22,0.0001602,2]
[349782315,1737425367147,-723.71,0.00018425,2]
[349782316,1737425367168,-289.13739247,0.00019785,2]
[349782317,1737425367189,-191.12695059,0.00019785,2]
[349782318,1737425367211,-191.12695057,0.00019797,2]
[349782320,1737425432282,-250.0,0.0001982,2]
[349782321,1737425432292,-39.125,0.00019885,2]
[349782322,1737425432303,-240.995,0.00019885,2]
[349782323,1737425432312,-3884.94,0.00019897,2]
[349782324,1737425432321,-130.13753009,0.0002,7]
[349782325,1737425432387,-4869.86246991,0.0002,7]
[349782326,1737425432397,-289.13739245,0.00020064,2]
[349782327,1737425432406,-663.89,0.000201,2]
[349782328,1737425432416,-1000.0,0.0002017,2]
[349782329,1737425432425,-1000.0,0.0002022,2]
[349782330,1737425432434,-300.0,0.00020236,2]
[349782331,1737425432443,-23900.0,0.00020237,2]
[349782332,1737425432452,-588.296,0.00020269,2]
[349782333,1737425432470,-506.14232354,0.0002027,7]
[349782334,1737425432481,-500.0,0.0002027,2]
[349782335,1737425432491,-834.34,0.00020327,2]
[349782336,1737425432500,-289.13739245,0.00020342,2]
[349782337,1737425432510,-684.73431645,0.00020365,2]
[349782338,1737425432519,-3222.62630959,0.00020366,2]
[349782339,1737425432532,-403.59055425,0.00020366,2]
[349782340,1737425432649,-479.87529719,0.00020366,2]
[349782341,1737425432705,-10084.51992953,0.00020366,2]
[349782342,1737425432715,-1031.29,0.00020388,2]
[349782343,1737425432726,-405.0,0.00020441,2]
[349782344,1737425432741,-500.0,0.00020442,2]
[349782345,1737425432756,-530.98680396,0.00020442,2]
[349782347,1737425432766,-2412.1948,0.00020443,2]
[349782349,1737425432777,-811.25,0.00020463,30]
[349782351,1737425432788,-250.0,0.00020629,2]
[349782353,1737425432799,-723.71,0.00020689,2]
[349782355,1737425432810,-174.0,0.00020712,2]
[349782357,1737425432820,-1563.3818,0.00020716,2]
[349782358,1737425432833,-500.0,0.00020716,2]
[349782359,1737425432844,-500.0,0.0002074,2]
[349782360,1737425432854,-175.41669172,0.00020816,2]
[349782361,1737425432864,-219.99712902,0.0002099,2]
[349782362,1737425432875,-388.0652,0.0002099,2]
[349782363,1737425432885,-260.74927658,0.0002099,2]
[349782364,1737425432896,-30250.65072921,0.0002109,2]
[349782365,1737425432912,-2076.78358511,0.0002109,2]
[349782366,1737425432925,-385.17500185,0.0002109,2]
[349782474,1737425438225,-63863.42838944,0.0002109,2]
[349782475,1737425438236,-171.0,0.00021199,2]
[349782476,1737425438246,-3212.67138746,0.00021267,2]
[349782477,1737425438256,-422.3149094,0.0002156,2]
[349782478,1737425438266,-1598.0,0.000217,2]
[349782479,1737425438276,-1149.0,0.000217,2]
[349782480,1737425438286,-3316.98462524,0.000217,2]
[349782481,1737425438296,-150.0,0.0002173,2]
[349782482,1737425438305,-150.0,0.00021732,2]
[349782483,1737425438315,-200.0,0.00021745,2]
[349782484,1737425438324,-222.52916797,0.00021747,2]
[349782485,1737425438338,-150.0,0.00021755,2]
[349782486,1737425438348,-222.52916797,0.00021778,2]
[349782487,1737425438357,-1000.0,0.00021778,2]
[349782488,1737425438366,-150.0,0.0002178,2]
[349782489,1737425438377,-3902.0,0.0002178,2]
[349782490,1737425438386,-3000.0,0.0002178,2]
[349782491,1737425438396,-222.52916797,0.00021793,2]
[349782492,1737425438407,-497.39845776,0.000218,2]
[349782493,1737425438416,-1000.0,0.000218,2]
[349782494,1737425438426,-222.52916797,0.00021806,2]
[349782495,1737425438436,-150.0,0.00021818,2]
[349782496,1737425438445,-500.0,0.00021824,2]
[349782497,1737425438455,-250.51964119,0.00021825,2]
[349782498,1737425438464,-150.0,0.00021834,2]
[349782499,1737425438474,-424.52651602,0.00021842,2]
[349782500,1737425438483,-150.0,0.00021866,2]
[349782501,1737425438493,-200.0,0.00021867,2]
[349782502,1737425438503,-1000.0,0.0002189,2]
[349782503,1737425438513,-1032.4079,0.0002189,2]
[349782504,1737425438523,-500.0,0.0002189,2]
[349782505,1737425438532,-500.0,0.00021898,2]
[349782506,1737425438542,-340.93470787,0.00021898,2]
[349782507,1737425438551,-500.0,0.00021898,2]
[349782508,1737425438561,-332.86049537,0.00021898,2]
[349782509,1737425438571,-500.0,0.00021898,2]
[349782510,1737425438584,-500.0,0.00021898,2]
[349782511,1737425438593,-500.0,0.00021898,2]
[349782513,1737425438603,-500.0,0.00021898,2]
[349782515,1737425438616,-771.08,0.00021898,2]
[349782516,1737425438625,-500.0,0.00021898,2]
[349782517,1737425438635,-500.0,0.00021898,2]
[349782518,1737425438645,-512.52384005,0.00021898,2]
[349782519,1737425438657,-955.61,0.00021898,2]
[349782521,1737425438667,-500.0,0.00021898,2]
[349782523,1737425438676,-500.0,0.00021898,2]
[349782525,1737425438686,-502.35504515,0.00021898,2]
[349782527,1737425438695,-501.60647807,0.00021898,2]
[349782529,1737425438705,-244.07859055,0.00021898,2]
[349782531,1737425438714,-500.0,0.00021898,2]
[349782533,1737425438724,-500.0,0.00021898,2]
[349782535,1737425438733,-500.0,0.00021898,2]
[349782537,1737425438742,-500.0,0.00021898,2]
[349782539,1737425438752,-509.56728999,0.00021898,2]
[349782541,1737425438761,-500.0,0.00021898,2]
[349782544,1737425438770,-500.0,0.00021898,2]
[349782547,1737425438780,-500.0,0.00021898,2]
[349782550,1737425438789,-214.57656946,0.00021898,2]
[349782552,1737425438798,-377.53759073,0.00021898,2]
[349782554,1737425438808,-500.0,0.00021898,2]
[349782556,1737425438818,-500.0,0.00021898,2]
[349782558,1737425438827,-500.0,0.00021898,2]
[349782560,1737425438839,-500.0,0.00021898,2]
[349782562,1737425438848,-500.0,0.00021898,2]
[349782564,1737425438857,-500.0,0.00021898,2]
[349782566,1737425438866,-500.0,0.00021898,2]
[349782568,1737425438875,-502.87,0.00021898,2]
[349782570,1737425438884,-513.388124,0.00021898,2]
[349782572,1737425438894,-500.0,0.00021898,2]
[349782574,1737425438903,-500.0,0.00021898,2]
[349782576,1737425438914,-500.0,0.00021898,2]
[349782578,1737425438924,-500.0,0.00021898,2]
[349782580,1737425438933,-671.64,0.00021898,2]
[349782582,1737425438942,-500.0,0.00021898,2]
[349782584,1737425438952,-569.37,0.00021898,2]
[349782586,1737425438961,-500.0,0.00021898,2]
[349782588,1737425438971,-706.55,0.00021898,2]
[349782590,1737425438980,-310.33894258,0.00021898,2]
[349782592,1737425438989,-1262.5,0.00021898,2]
[349782594,1737425438998,-500.0,0.00021898,2]
[349782595,1737425439008,-197.07728944,0.00021898,2]
[349782597,1737425439017,-500.0,0.00021898,2]
[349782599,1737425439026,-500.0,0.00021898,2]
[349782601,1737425439035,-429.386757,0.00021898,2]
[349782603,1737425439044,-569.65,0.00021898,2]
[349782605,1737425439053,-160.689841,0.00021898,2]
[349782606,1737425439063,-500.0,0.00021898,2]
[349782607,1737425439072,-500.0,0.00021898,2]
[349782608,1737425439085,-500.0,0.00021898,2]
[349782609,1737425439094,-609.84,0.00021898,2]
[349782610,1737425439103,-621.87,0.00021898,2]
[349782611,1737425439112,-222.52916797,0.00021899,2]
[349782612,1737425439121,-500.0,0.00021899,2]
[349782613,1737425439130,-500.0,0.00021899,2]
[349782614,1737425439139,-500.0,0.00021899,2]
[349782615,1737425439149,-500.0,0.00021899,2]
[349782616,1737425439158,-514.42,0.00021899,2]
[349782617,1737425439167,-500.0,0.00021899,2]
[349782618,1737425439176,-5000.0,0.000219,2]
[349782619,1737425439185,-168.73929433,0.000219,2]
[349782620,1737425439195,-1754.51,0.000219,31]
[349782621,1737425439204,-1754.51,0.000219,31]
[349782622,1737425439213,-1754.51,0.000219,31]
[349782623,1737425439223,-1754.51,0.000219,31]
[349782624,1737425439232,-1754.51,0.000219,31]